bitfinex-derivatives/quotes_ETHF0:USTF0_20250213
["timestamp","ask_amount","ask_price","bid_price","bid_amount"]
[1739474594512,0.75497,2648.7,2648.6,3.2078]
[1739474594716,0.6012,2649.1,2648.6,3.2078]
[1739474594918,0.6012,2649.1,2648.7,0.75496]
[1739474595217,0.75497,2648.8,2648.6,3.96278]
[1739474595420,0.75497,2648.8,2648.6,3.2078]
[1739474595622,0.75497,2648.8,2648.7,0.75497]
[1739474595921,0.75497,2648.7,2648.6,3.2078]
[1739474596324,0.5599,2649.0,2648.7,0.75495]
[1739474596513,1.31481,2649.0,2648.8,0.75492]
[1739474596718,0.75491,2648.9,2648.8,0.75492]
[1739474597220,0.75497,2648.7,2648.6,3.2078]
[1739474597721,0.5599,2649.0,2648.6,3.2078]
[1739474597922,0.5599,2649.0,2648.6,3.96278]
[1739474598122,0.75496,2648.8,2648.7,0.75497]
[1739474598318,0.75493,2648.9,2648.6,3.2078]
[1739474598622,0.75492,2648.9,2648.8,0.75492]
[1739474599022,0.5599,2649.0,2648.6,3.2078]
[1739474599219,0.75497,2648.7,2648.6,3.96278]
[1739474599523,0.5599,2649.0,2648.6,3.2078]
[1739474599723,0.75497,2648.7,2648.6,3.96278]
[1739474599923,0.755,2648.6,2648.5,0.5801]
[1739474600124,3.7677,2649.0,2648.5,0.5801]
[1739474600324,0.755,2648.6,2648.5,1.33511]
[1739474601019,3.7677,2649.0,2648.5,0.5801]
[1739474601222,3.2078,2649.0,2648.9,0.75491]
[1739474601421,0.75495,2648.8,2648.7,0.75495]
[1739474601822,3.2078,2649.0,2648.5,0.5801]
[1739474602026,0.75495,2648.8,2648.7,0.75495]
[1739474602226,0.75493,2648.9,2648.8,0.75493]
[1739474602428,3.2078,2649.0,2648.5,0.5801]
[1739474602630,0.755,2648.6,2648.5,1.33511]
[1739474602826,5.09503,2649.0,2648.5,0.5801]
[1739474603026,0.755,2648.6,2648.5,1.33512]
[1739474603323,5.09503,2649.0,2648.5,0.5801]
[1739474603529,0.755,2648.6,2648.5,0.5801]
[1739474603929,0.75503,2648.5,2648.4,0.9046738]
[1739474604228,0.75503,2648.5,2648.4,0.1496238]
[1739474604821,3.91267002,2648.5,2647.6,3.2078]
[1739474605020,0.75521,2647.9,2647.7,0.75523]
[1739474605225,0.75521,2647.9,2647.8,0.75523]
[1739474605726,2.19711146,2648.3,2647.6,4.3665]
[1739474606027,1.8006638,2648.2,2647.7,0.0056638]
[1739474606225,0.7552,2648.0,2647.8,0.75522]
[1739474606422,0.75518,2648.0,2647.8,0.75522]
[1739474607222,0.75518,2648.0,2647.8,0.75523]
[1739474607419,2.5557838,2648.2,2647.7,0.0056638]
[1739474607633,0.7607838,2648.2,2648.0,0.75516]
[1739474607937,0.0056638,2648.2,2647.9,0.75518]
[1739474608126,0.75517,2648.0,2647.9,0.75518]
[1739474608321,0.75517,2648.0,2647.7,0.0056638]
[1739474608524,0.0056638,2648.2,2647.7,0.7608938]
[1739474608829,0.0056638,2648.2,2647.7,0.0056638]
[1739474609022,0.75523,2647.8,2647.7,0.7609038]
[1739474609222,0.75521,2647.9,2647.8,0.75523]
[1739474609830,0.0056638,2648.2,2647.7,0.0056638]
[1739474610629,0.75515,2648.1,2647.9,0.75518]
[1739474610821,0.0056638,2648.2,2647.9,0.75518]
[1739474611028,0.7552,2647.9,2647.8,0.75522]
[1739474611222,0.7552,2647.9,2647.7,0.0056638]
[1739474611427,0.0056638,2648.2,2647.7,0.0056638]
[1739474611633,0.75522,2647.9,2647.8,0.40245098]
[1739474612328,0.7552,2647.9,2647.8,1.15766098]
[1739474612828,0.0056638,2648.2,2647.8,0.40245098]
[1739474613032,0.7608038,2648.2,2647.9,3.61025098]
[1739474613231,0.7608038,2648.2,2648.1,0.75514]
[1739474613531,0.0056638,2648.2,2648.1,0.75514]
[1739474613734,0.0056638,2648.2,2648.1,1.15694805]
[1739474614231,0.0056638,2648.2,2648.1,1.74424805]
[1739474614441,0.0056638,2648.2,2648.1,42.54424805]
[1739474615034,0.7607738,2648.2,2648.1,42.54424805]
[1739474615233,0.7607738,2648.2,2648.1,42.54375427]
[1739474615441,0.7607738,2648.2,2648.1,40.8]
[1739474616635,0.0056638,2648.2,2648.1,41.55514]
[1739474616935,0.7607738,2648.2,2648.1,40.8]
[1739474617336,0.0056638,2648.2,2648.1,41.95666334]
[1739474618635,0.0056638,2648.2,2648.1,41.95679529]
[1739474619338,0.0056638,2648.2,2648.1,41.95674383]
[1739474620538,0.5928,2648.9,2648.2,1.88776]
[1739474620838,0.5928,2648.9,2648.5,3.2078]
[1739474621034,0.5928,2648.9,2648.5,3.96282]
[1739474621035,0.755,2648.6,2648.5,3.96282]
[1739474621336,0.5928,2648.9,2648.5,3.2078]
[1739474621532,0.75496,2648.8,2648.6,0.755]
[1739474621734,0.755,2648.6,2648.5,3.96281]
[1739474622239,0.755,2648.6,2648.5,3.2078]
[1739474622737,0.755,2648.6,2648.5,3.96283]
[1739474623036,0.755,2648.6,2648.5,0.75503]
[1739474623440,0.75498,2648.7,2648.6,0.75499]
[1739474623735,0.5928,2648.9,2648.5,3.96281]
[1739474623936,0.75499,2648.7,2648.6,0.755]
[1739474624332,0.75498,2648.7,2648.6,0.75498]
[1739474624526,0.755,2648.6,2648.5,3.2078]
[1739474626235,0.75499,2648.7,2648.6,0.755]
[1739474627128,0.5928,2648.9,2648.5,3.2078]
[1739474627329,0.5928,2648.9,2648.5,5.09536]
[1739474627528,1.34774,2648.9,2648.8,0.75494]
[1739474627731,0.5928,2648.9,2648.8,0.75494]
[1739474628231,0.75495,2648.8,2648.7,0.75495]
[1739474628435,0.5928,2648.9,2648.5,5.09536]
[1739474628636,0.75495,2648.8,2648.7,0.75494]
[1739474629143,0.5928,2648.9,2648.5,3.2078]
[1739474629324,0.755,2648.6,2648.3,0.5572]
[1739474629532,1.88736,2648.8,2648.3,0.5572]
[1739474629839,0.75506,2648.4,2648.3,1.31228]
[1739474630033,2.44986,2648.8,2648.3,0.5572]
[1739474630331,0.755,2648.6,2648.5,0.75502]
[1739474630536,0.755,2648.6,2648.5,3.96282]
[1739474630935,0.75506,2648.4,2648.3,1.31227]
[1739474631132,1.88744,2648.7,2648.2,3.7743]
[1739474631341,0.75508,2648.3,2648.2,3.2078]
[1739474631734,0.75511,2648.2,2648.1,0.75513]
[1739474632130,1.88758,2648.5,2647.9,4.3653]
[1739474632330,0.75517,2648.0,2647.9,3.2078]
[1739474632532,3.36642316,2648.3,2647.8,0.75521]
[1739474632726,0.7552,2647.9,2647.7,0.0056638]
[1739474632930,0.7552,2647.9,2647.8,0.75523]
[1739474633134,1.33886,2648.1,2647.9,0.75518]
[1739474633434,0.5837,2648.1,2647.8,0.75522]
[1739474633639,0.75521,2647.9,2647.7,0.0056638]
[1739474633940,0.75519,2648.0,2647.8,0.75521]
[1739474634336,1.1472,2648.1,2648.0,0.75517]
[1739474634533,1.33884,2648.1,2647.9,0.75518]
[1739474634725,1.33884,2648.1,2647.7,0.5582638]
[1739474634726,0.5837,2648.1,2647.7,0.5582638]
[1739474634932,0.75517,2648.0,2647.9,0.75519]
[1739474635234,0.75521,2647.9,2647.7,0.5582638]
[1739474635439,0.75521,2647.9,2647.8,0.75523]
[1739474635630,0.75523,2647.8,2647.7,0.5582638]
[1739474635826,0.75523,2647.8,2647.7,0.7609238]
[1739474636934,0.5837,2648.1,2647.7,0.7609238]
[1739474637134,0.75522,2647.9,2647.7,0.7609238]
[1739474637529,0.5837,2648.1,2647.8,0.75523]
[1739474637835,0.75523,2647.8,2647.7,0.7609138]
[1739474638934,0.5837,2648.1,2647.7,0.0056638]
[1739474639434,0.5837,2648.1,2647.7,0.7608938]
[1739474639638,0.75523,2647.8,2647.7,0.0056638]
[1739474640739,2.47158,2648.1,2647.7,0.0056638]
[1739474640937,0.75523,2647.8,2647.7,0.7609038]
[1739474641636,0.75523,2647.8,2647.7,0.0056638]
[1739474641833,5.0018,2647.9,2647.2,3.2078]
[1739474642033,0.75537,2647.3,2647.2,3.96318]
[1739474642235,5.09602,2647.6,2647.0,40.8]
[1739474642437,1.32902,2647.2,2647.1,0.75541]
[1739474642636,0.5736,2647.2,2647.1,0.75541]
[1739474644041,0.0056638,2647.4,2647.0,40.8]
[1739474644235,0.0056638,2647.4,2647.3,3.96317]
[1739474644542,0.7610038,2647.4,2647.3,3.2078]
[1739474644743,0.0056638,2647.4,2647.3,3.96317]
[1739474648539,0.7610038,2647.4,2647.3,3.2078]
[1739474648738,0.0056638,2647.4,2647.0,40.8]
[1739474648939,0.75543,2647.1,2647.0,40.8]
[1739474650048,0.75546,2647.0,2646.9,0.0056638]
[1739474650236,7.92898316,2647.0,2646.9,3.8e-06]
[1739474650436,0.75563,2646.4,2646.3,41.381]
[1739474650842,0.75563,2646.4,2646.3,40.8]
[1739474651049,0.75571,2646.1,2646.0,3.2078]
[1739474651545,0.75571,2646.1,2646.0,44.0078]
[1739474652140,0.5548,2646.2,2646.0,44.0078]
[1739474652343,2.55061,2646.5,2646.2,0.75568]
[1739474652547,0.75558,2646.6,2646.0,44.5586]
[1739474652745,0.75558,2646.6,2646.4,0.75562]
[1739474652952,4.3516,2646.7,2646.5,0.75559]
[1739474652953,1.89935,2646.7,2646.5,0.75559]
[1739474653250,1.1438,2646.7,2646.3,3.2078]
[1739474653448,7.12122316,2647.0,2646.3,3.2078]
[1739474653654,0.75554,2646.7,2646.6,3.2078]
[1739474654149,0.75563,2646.4,2646.3,3.2078]
[1739474657049,0.581,2646.5,2646.3,3.2078]
[1739474657247,1.795,2646.4,2646.0,44.0078]
[1739474657447,0.75577,2645.9,2645.8,0.0056638]
[1739474658854,2.55077,2645.9,2645.8,0.0056638]
[1739474660849,3.12137,2645.9,2645.8,0.0056638]
[1739474661550,1.32637,2645.9,2645.8,0.0056638]
[1739474661756,3.12137,2645.9,2645.8,0.0056638]
[1739474664053,3.95652316,2646.4,2645.8,0.0056638]
[1739474664254,0.75566,2646.3,2646.2,0.75566]
[1739474664453,0.75569,2646.2,2646.1,0.75569]
[1739474664654,0.75568,2646.3,2646.2,0.75567]
[1739474664857,3.94682316,2646.4,2645.9,4.34022218]
[1739474665059,0.75572,2646.1,2646.0,0.75572]
[1739474665255,3.94682316,2646.4,2645.9,4.34022218]
[1739474666056,4.70247316,2646.4,2646.2,0.75567]
[1739474666257,4.70247316,2646.4,2646.3,0.75566]
[1739474666463,3.36642316,2646.7,2645.9,4.34022218]
[1739474666663,3.36642316,2646.7,2646.5,0.75559]
[1739474666959,0.5618,2646.8,2646.2,3.2078]
[1739474667163,0.75554,2646.7,2646.2,3.2078]
[1739474667355,0.5618,2646.8,2646.2,5.09699]
[1739474667556,1.31732,2646.8,2646.6,0.75555]
[1739474667758,1.31732,2646.8,2646.2,5.09699]
[1739474667759,6.57422316,2647.0,2646.2,5.09699]
[1739474668060,0.75548,2646.9,2646.7,0.75554]
[1739474668462,6.57422316,2647.0,2646.6,41.9214]
[1739474668851,3.36642316,2647.0,2646.6,41.9214]
[1739474669058,3.36642316,2647.0,2646.6,42.4861]
[1739474669264,1.31721,2647.2,2647.0,0.75545]
[1739474669458,7.32961316,2647.3,2647.1,0.75542]
[1739474669659,3.2078,2647.3,2646.8,3.2078]
[1739474669958,3.2078,2647.3,2646.8,5.09656]
[1739474670160,3.2078,2647.3,2647.2,0.7554]
[1739474670664,3.96317,2647.3,2647.2,0.7554]
[1739474670965,3.2078,2647.3,2647.2,0.7554]
[1739474671155,0.0056638,2647.4,2646.8,5.09656]
[1739474671359,0.0056638,2647.4,2647.3,0.75537]
[1739474671663,0.0056638,2647.4,2647.2,0.5709]
[1739474671965,0.0056638,2647.4,2647.3,0.75537]
[1739474672766,0.0056638,2647.4,2647.2,1.1317]
[1739474672969,0.7610038,2647.4,2647.2,1.1317]
[1739474673167,0.0056638,2647.4,2647.3,0.75537]
[1739474680380,0.75537,2647.3,2647.2,1.88709]
[1739474680677,0.75537,2647.3,2647.2,0.5608]
[1739474680878,0.0056638,2647.4,2647.2,0.5608]
[1739474681076,0.7610238,2647.4,2647.3,0.75537]
[1739474681274,0.75537,2647.3,2647.2,0.5608]
[1739474681484,0.75537,2647.3,2647.2,1.3162]
[1739474681674,0.0056638,2647.4,2647.1,3.2078]
[1739474681876,0.7554,2647.2,2647.1,3.2078]
[1739474682176,0.75552,2646.8,2646.5,3.2078]
[1739474682383,0.75554,2646.7,2646.6,0.75556]
[1739474682678,5.09633,2647.2,2646.5,44.0078]
[1739474682679,0.7555,2646.9,2646.5,44.0078]
[1739474682873,0.75552,2646.8,2646.5,44.0078]
[1739474683085,0.75552,2646.8,2646.6,0.75557]
[1739474683287,0.75556,2646.7,2646.5,44.76338]
[1739474683487,0.75553,2646.8,2646.6,0.75557]
[1739474683687,0.75554,2646.7,2646.5,44.0078]
[1739474683883,6.89033,2647.2,2646.5,44.0078]
[1739474684085,1.88858,2647.1,2646.6,0.75556]
[1739474684280,6.89033,2647.2,2646.6,0.75556]
[1739474684486,6.89033,2647.2,2646.5,44.0078]
[1739474684683,0.7555,2646.9,2646.5,44.0078]
[1739474685081,0.7555,2646.9,2646.7,0.75552]
[1739474685284,0.75549,2646.9,2646.8,0.7555]
[1739474685488,1.88858,2647.1,2646.6,0.75555]
[1739474685689,3.36642316,2647.0,2646.5,3.2078]
[1739474685882,3.36642316,2647.0,2646.4,0.5847]
[1739474685883,3.2078,2646.8,2646.4,0.5847]
[1739474686090,0.7556,2646.5,2646.4,0.75562]
[1739474686286,1.1554,2646.7,2646.2,3.2078]
[1739474686483,1.1554,2646.7,2646.6,0.75557]
[1739474686484,0.5919,2646.7,2646.6,0.75557]
[1739474686889,4.12189316,2647.0,2646.9,0.75548]
[1739474687290,3.36642316,2647.0,2646.3,3.2078]
[1739474687492,4.12188316,2647.0,2646.9,0.75548]
[1739474687892,0.75549,2646.9,2646.8,0.75548]
[1739474688289,3.7997,2647.1,2647.0,0.75546]
[1739474688794,4.55513,2647.1,2647.0,0.75546]
[1739474689289,3.7997,2647.1,2646.7,0.5995]
[1739474689694,0.5919,2647.1,2647.0,0.75546]
[1739474690492,3.2134638,2647.4,2646.8,1.88879]
[1739474690694,3.2134638,2647.4,2647.3,0.75537]
[1739474690896,3.2134638,2647.4,2646.8,0.5498]
[1739474691095,0.75541,2647.2,2647.0,0.75543]
[1739474691402,3.2134638,2647.4,2646.8,0.5498]
[1739474691694,0.75538,2647.3,2647.1,0.7554]
[1739474691997,0.7554,2647.3,2647.1,0.7554]
[1739474692197,0.75542,2647.2,2647.0,0.75545]
[1739474692390,3.2134638,2647.4,2646.7,0.5995]
[1739474692590,0.7554,2647.3,2646.7,2.4883]
[1739474692796,0.75537,2647.3,2647.2,0.75539]
[1739474692990,0.7610238,2647.4,2647.2,0.75539]
[1739474693198,0.7610238,2647.4,2647.1,3.2078]
[1739474693199,0.0056638,2647.4,2647.3,0.75537]
[1739474693999,3.8106,2648.0,2647.3,0.5547]
[1739474694198,0.75523,2647.8,2647.7,0.75525]
[1739474694399,0.75522,2647.9,2647.7,0.75525]
[1739474694892,0.75524,2647.8,2647.5,3.2078]
[1739474695094,0.6028,2648.0,2647.6,0.75528]
[1739474695296,0.0056638,2647.9,2647.5,3.2078]
[1739474695696,0.0056638,2647.9,2647.8,0.75523]
[1739474696199,0.7608838,2647.9,2647.8,0.75523]
[1739474696503,0.7608838,2647.9,2647.5,3.2078]
[1739474696703,0.7608838,2647.9,2647.7,0.75523]
[1739474696900,0.0056638,2647.9,2647.8,0.75523]
[1739474697097,0.0056638,2647.9,2647.6,40.8]
[1739474697299,0.7608838,2647.9,2647.8,0.75523]
[1739474698202,0.0056638,2647.9,2647.8,0.75523]
[1739474698998,0.0056638,2647.9,2647.5,5.0008]
[1739474699198,0.7608838,2647.9,2647.8,0.75523]
[1739474699399,0.0056638,2647.9,2647.8,0.75523]
[1739474700303,0.7608638,2647.9,2647.8,0.75523]
[1739474700495,0.0056638,2647.9,2647.8,0.75523]
[1739474700699,0.75523,2647.8,2647.7,1.34965]
[1739474700901,0.75523,2647.8,2647.7,0.5944]
[1739474701098,0.0056638,2647.9,2647.5,3.2078]
[1739474701306,0.75531,2647.5,2647.4,0.0056638]
[1739474704113,0.75531,2647.5,2647.4,0.7610038]
[1739474704314,1.3188,2647.6,2647.5,0.75531]
[1739474705202,0.5635,2647.6,2647.5,0.75531]
[1739474705408,7.88848316,2647.7,2647.6,0.75528]
[1739474705717,0.559,2647.7,2647.6,0.75528]
[1739474706708,0.0056638,2647.9,2647.8,0.75523]
[1739474708412,0.0056638,2647.9,2647.7,3.96304]
[1739474708611,0.75523,2647.8,2647.7,3.2078]
[1739474709207,0.7608738,2647.9,2647.8,0.75523]
[1739474709709,0.0056638,2647.9,2647.8,41.55523]
[1739474711313,0.7608738,2647.9,2647.8,0.75523]
[1739474711514,0.0056638,2647.9,2647.8,0.75523]
[1739474713613,0.0056638,2647.9,2647.7,3.96303]
[1739474713813,0.0056638,2647.9,2647.7,3.2078]
[1739474714115,0.0056638,2647.9,2647.8,0.75523]
[1739474716314,0.7608638,2647.9,2647.8,0.75523]
[1739474716506,0.75531,2647.6,2647.4,3.2134638]
[1739474716720,0.5884,2647.5,2647.4,0.7609838]
[1739474717014,0.75524,2647.8,2647.7,0.75526]
[1739474717319,0.75523,2647.8,2647.7,0.75526]
[1739474717517,0.0056638,2647.9,2647.5,0.5961]
[1739474718018,0.75524,2647.8,2647.7,0.75524]
[1739474718222,0.75524,2647.8,2647.6,0.75526]
[1739474718411,0.75528,2647.6,2647.5,0.5961]
[1739474718611,0.75528,2647.6,2647.5,1.3514]
[1739474718814,0.0056638,2647.9,2647.4,0.7609938]
[1739474718815,0.75531,2647.5,2647.4,0.7609938]
[1739474719114,0.75531,2647.5,2647.4,0.0056638]
[1739474719523,3.96311,2647.5,2647.4,0.0056638]
[1739474719811,3.2078,2647.5,2646.8,0.7555]
[1739474720112,3.2078,2647.2,2646.9,40.8]
[1739474720313,0.75546,2647.0,2646.8,0.75549]
[1739474720620,0.5496,2647.4,2647.3,0.75537]
[1739474720916,3.96312,2647.5,2647.4,0.75534]
[1739474721315,3.2134638,2647.9,2647.3,3.2078]
[1739474721513,0.75525,2647.8,2647.6,0.75528]
[1739474721811,3.2134638,2647.9,2647.4,0.5696]
[1739474722012,0.75525,2647.8,2647.6,0.75527]
[1739474722419,3.9686738,2647.9,2647.7,0.75525]
[1739474722620,3.2134638,2647.9,2647.4,0.5696]
[1739474722914,0.7608838,2647.9,2647.8,0.75523]
[1739474723215,0.0056638,2647.9,2647.4,0.5696]
[1739474723516,0.75525,2647.8,2647.5,0.75529]
[1739474723820,0.75526,2647.7,2647.5,0.75529]
[1739474724016,0.0056638,2647.9,2647.4,0.5696]
[1739474724211,0.75525,2647.8,2647.5,0.75529]
[1739474724412,0.75527,2647.7,2647.5,0.75529]
[1739474724612,0.0056638,2647.9,2647.4,0.5696]
[1739474724813,0.0056638,2647.9,2647.8,0.75523]
[1739474725213,0.0056638,2647.9,2647.4,0.5696]
[1739474725614,0.0056638,2647.9,2647.8,0.75523]
[1739474726218,0.7608738,2647.9,2647.7,0.75524]
[1739474726421,0.7608838,2647.9,2647.7,0.75525]
[1739474727518,0.7608838,2647.9,2647.8,0.75523]
[1739474728515,0.0056638,2647.9,2647.8,0.75523]
[1739474734325,0.0056638,2647.9,2647.7,0.5862]
[1739474734624,0.7608838,2647.9,2647.8,0.75523]
[1739474735024,0.0056638,2647.9,2647.8,0.75523]
[1739474735729,0.75531,2647.5,2647.4,1.32492]
[1739474736114,0.75527,2647.7,2647.6,0.75526]
[1739474736624,0.75527,2647.7,2647.4,0.5696]
[1739474736625,1.7198,2647.8,2647.4,0.5696]
[1739474736828,1.7198,2647.8,2647.7,0.75526]
[1739474737420,0.0056638,2647.9,2647.6,3.2078]
[1739474737624,0.0056638,2647.9,2647.8,0.75523]
[1739474738125,0.0056638,2647.9,2647.8,41.55523]
[1739474738522,0.0056638,2647.9,2647.8,44.92165316]
[1739474739117,0.75501,2648.6,2648.5,0.75503]
[1739474739318,0.75503,2648.6,2648.4,0.75504]
[1739474739722,1.31599,2648.7,2648.5,0.75501]
[1739474740131,0.75501,2648.6,2648.4,0.5741]
[1739474740425,0.561,2648.7,2648.4,0.5741]
[1739474740625,1.31599,2648.7,2648.5,0.75501]
[1739474740926,0.561,2648.7,2648.6,0.755]
[1739474741721,0.561,2648.7,2648.4,0.5741]
[1739474742134,0.561,2648.7,2648.6,0.755]
[1739474742426,0.0056638,2648.9,2648.8,0.75494]
[1739474744224,0.0056638,2648.9,2648.7,0.5864]
[1739474744429,0.0056638,2648.9,2648.8,0.75494]
[1739474746026,0.7605938,2648.9,2648.7,1.34135]
[1739474746225,0.0056638,2648.9,2648.7,0.5864]
[1739474746424,0.0056638,2648.9,2648.8,0.75494]
[1739474746624,0.7605838,2648.9,2648.8,0.75494]
[1739474746825,0.7605938,2648.9,2648.7,0.75496]
[1739474747318,0.0056638,2648.9,2648.8,0.75494]
[1739474749433,0.7605838,2648.9,2648.8,0.75494]
[1739474749732,0.0056638,2648.9,2648.8,0.75494]
[1739474755134,0.0056638,2648.9,2648.8,41.55494]
[1739474755623,0.0056638,2648.9,2648.8,0.75494]
[1739474756122,0.7605738,2648.9,2648.8,0.75494]
[1739474757235,0.0056638,2648.9,2648.8,0.75494]
[1739474758831,0.7605738,2648.9,2648.8,0.75494]
[1739474760233,0.0056638,2648.9,2648.6,45.8044638]
[1739474760434,0.75497,2648.7,2648.6,46.5594438]
[1739474760632,0.75497,2648.7,2648.6,40.8056638]
[1739474760836,0.75497,2648.7,2648.6,0.0056638]
[1739474761032,1.35757,2648.7,2648.6,0.0056638]
[1739474765729,1.41928672,2648.7,2648.6,0.0056638]
[1739474766435,0.75517,2648.1,2648.0,0.75515]
[1739474766630,1.88751,2648.6,2647.9,44.607]
[1739474766631,5.09547,2648.4,2647.9,44.607]
[1739474766832,1.30147,2648.0,2647.9,44.76298]
[1739474767434,1.30147,2648.0,2647.9,3.96298]
[1739474767744,0.75523,2647.8,2647.7,0.7609038]
[1739474768133,0.75523,2647.8,2647.7,41.5609038]
[1739474768738,0.75523,2647.8,2647.7,40.8056638]
[1739474768934,0.75523,2647.8,2647.7,0.0056638]
[1739474768935,3.96303,2647.8,2647.7,0.0056638]
[1739474769331,0.75538,2647.3,2647.2,0.75537]
[1739474769538,1.88819,2647.7,2647.0,2.9279]
[1739474769731,0.75536,2647.4,2647.3,0.75535]
[1739474769937,3.7956,2647.8,2647.3,40.8]
[1739474770437,3.8012638,2647.8,2647.3,40.8]
[1739474770640,0.75528,2647.7,2647.6,0.75527]
[1739474771036,3.8012638,2647.8,2647.3,40.8]
[1739474771234,0.7553,2647.6,2647.3,40.8]
[1739474771439,3.8012638,2647.8,2647.3,40.8]
[1739474771640,0.75533,2647.5,2647.4,0.75532]
[1739474772140,5.6893638,2647.8,2647.3,40.8]
[1739474772338,0.75534,2647.4,2647.3,40.8]
[1739474773044,0.75537,2647.3,2647.2,0.75538]
[1739474773241,1.32517,2647.3,2647.2,0.75538]
[1739474773642,0.7554,2647.2,2647.1,41.5554]
[1739474774838,0.5698,2647.3,2647.2,0.7554]
[1739474774839,1.32518,2647.3,2647.2,0.7554]
[1739474775038,0.7554,2647.2,2647.1,41.55541]
[1739474775437,0.7554,2647.2,2647.1,40.8]
[1739474775640,1.3245,2647.2,2647.1,40.8]
[1739474776037,0.5691,2647.2,2646.9,3.2078]
[1739474776342,0.75551,2646.8,2646.7,0.75553]
[1739474776542,0.75551,2646.8,2646.7,41.55553]
[1739474777042,3.2078,2647.1,2646.7,40.8]
[1739474777247,0.75551,2646.8,2646.7,41.55553]
[1739474778249,0.7555,2646.9,2646.8,0.75549]
[1739474778450,0.75551,2646.8,2646.7,41.55553]
[1739474778943,0.75548,2647.0,2646.9,0.75547]
[1739474779145,3.2078,2647.1,2646.7,40.8]
[1739474779352,0.5691,2647.2,2646.7,40.8]
[1739474779549,0.75548,2647.0,2646.9,0.75546]
[1739474780252,1.32453,2647.2,2647.1,0.75543]
[1739474780455,1.32519,2647.3,2647.2,0.7554]
[1739474780953,0.75544,2647.1,2647.0,0.75543]
[1739474781146,0.75546,2647.0,2646.9,1.87326]
[1739474782050,0.75544,2647.1,2647.0,0.75543]
[1739474782246,0.75542,2647.2,2647.1,0.75541]
[1739474782446,0.75546,2647.0,2646.9,1.87326]
[1739474783546,0.75545,2647.1,2647.0,0.75544]
[1739474783738,0.75545,2647.1,2646.9,1.1178]
[1739474783739,0.75546,2647.0,2646.9,1.87326]
[1739474783945,0.75546,2647.0,2646.9,1.1178]
[1739474784352,0.75546,2647.0,2646.9,1.87328]
[1739474784648,2.45827,2647.3,2646.9,1.87328]
[1739474784649,0.5698,2647.3,2646.9,1.1178]
[1739474784849,0.75546,2647.1,2647.0,0.75544]
[1739474786252,0.75546,2647.0,2646.9,1.87326]
[1739474787851,0.75546,2647.0,2646.9,1.1178]
[1739474788654,0.75546,2647.0,2646.9,0.5602]
[1739474789652,0.75546,2647.0,2646.9,1.31568]
[1739474789857,0.5738,2647.2,2646.9,0.5602]
[1739474790153,1.32522,2647.3,2647.2,0.7554]
[1739474790951,4.3262,2647.7,2647.0,1.88865]
[1739474791149,4.3262,2647.7,2647.3,0.75535]
[1739474791150,0.75537,2647.4,2647.3,0.75535]
[1739474791458,6.27359,2647.7,2647.0,1.88865]
[1739474791459,4.3854,2647.7,2647.0,1.88865]
[1739474791758,3.2078,2647.7,2647.6,0.75528]
[1739474792255,3.2078,2647.7,2647.3,1.88842]
[1739474792256,3.2078,2647.7,2647.4,1.1459]
[1739474792455,3.96307,2647.7,2647.6,0.75528]
[1739474793154,0.75531,2647.6,2647.5,0.7553]
[1739474793552,3.96307,2647.7,2647.6,0.75528]
[1739474793756,3.2078,2647.7,2647.4,1.1459]
[1739474794154,0.75531,2647.5,2647.4,1.1459]
[1739474794358,0.75531,2647.5,2647.4,1.90124]
[1739474794748,0.75531,2647.5,2647.4,1.1459]
[1739474794951,0.75539,2647.3,2647.2,0.75538]
[1739474795353,0.7554,2647.2,2647.1,4.52311]
[1739474795656,0.75539,2647.3,2647.2,0.75538]
[1739474795952,6.43375316,2647.6,2647.1,0.5599]
[1739474795953,2.47293,2647.6,2647.1,0.5599]
[1739474796156,0.5847,2647.6,2647.1,0.5599]
[1739474796354,0.5847,2647.6,2646.5,3.77798]
[1739474796355,3.36642316,2647.2,2646.2,3.2078]
[1739474796553,3.2078,2646.6,2645.9,44.0078]
[1739474796758,1.7275,2646.5,2645.9,3.2078]
[1739474796956,1.7275,2646.5,2645.5,3.2078]
[1739474796957,6.57422316,2646.2,2645.5,3.2078]
[1739474797151,6.57422316,2646.2,2645.6,40.8]
[1739474797356,0.75585,2645.7,2645.6,40.8]
[1739474799254,0.75591,2645.4,2645.3,0.5494]
[1739474799450,1.06314405,2645.4,2645.3,0.5494]
[1739474799858,0.75591,2645.4,2645.3,0.5494]
[1739474800053,0.5871,2645.8,2645.3,0.5494]
[1739474800360,0.75591,2645.4,2645.3,0.5494]
[1739474801061,0.29550478,2645.5,2645.2,40.8]
[1739474801358,0.75594,2645.4,2645.2,40.8]
[1739474801559,3.2078,2645.6,2645.2,40.8]
[1739474801759,0.75593,2645.4,2645.2,40.8]
[1739474802458,0.75594,2645.3,2645.2,40.8]
[1739474803660,5.09767,2645.3,2644.9,0.5457]
[1739474804059,0.75606,2644.9,2644.8,3.2078]
[1739474804560,0.75606,2644.9,2644.8,44.0078]
[1739474805063,0.75606,2644.9,2644.8,3.2078]
[1739474805866,8.92862316,2645.0,2644.4,3.2078]
[1739474806061,0.75617,2644.5,2644.4,3.2078]
[1739474806263,0.7562,2644.4,2644.3,40.8]
[1739474807870,0.75626,2644.2,2644.1,1.86168]
[1739474808165,0.75626,2644.2,2644.1,41.3451]
[1739474808668,0.75626,2644.2,2644.1,40.8]
[1739474811369,1.789,2644.6,2644.1,44.0078]
[1739474811565,0.75621,2644.4,2644.3,3.36642316]
[1739474811868,0.75621,2644.4,2644.3,4.12265316]
[1739474812265,0.75621,2644.4,2644.3,3.36642316]
[1739474813469,0.7562,2644.4,2644.3,3.36642316]